bitfinex-derivatives/quotes_SOLF0:USTF0_20260305
["timestamp","ask_amount","ask_price","bid_price","bid_amount"]
[1772745209956,10.065,89.398,89.351,3.80773756]
[1772745210162,13.70991947,89.398,89.351,3.80773756]
[1772745210560,3.64491947,89.395,89.352,3.80773756]
[1772745211160,3.64491947,89.395,89.355,3.80773756]
[1772745211862,3.52770689,89.4,89.355,3.80773756]
[1772745212062,7.17262636,89.4,89.355,3.80773756]
[1772745212362,3.64491947,89.399,89.355,3.80773756]
[1772745212564,3.64491947,89.399,89.371,10.068]
[1772745212958,3.64491947,89.399,89.364,3.80773756]
[1772745214471,3.64491947,89.399,89.365,3.80773756]
[1772745216263,3.64491947,89.399,89.357,10.07]
[1772745216669,3.64491947,89.399,89.354,3.80773756]
[1772745218267,3.64491947,89.399,89.356,3.80773756]
[1772745218761,3.64491947,89.397,89.356,3.80773756]
[1772745219468,3.64491947,89.397,89.355,10.07]
[1772745222270,3.64491947,89.394,89.35,3.80773756]
[1772745222566,3.52770689,89.39,89.35,3.80773756]
[1772745225870,13.71091947,89.391,89.35,3.80773756]
[1772745226074,3.64491947,89.387,89.35,3.80773756]
[1772745227473,13.71191947,89.385,89.35,3.80773756]
[1772745227867,3.64491947,89.399,89.351,3.80773756]
[1772745228066,3.64491947,89.397,89.351,3.80773756]
[1772745229573,3.64491947,89.393,89.352,3.80773756]
[1772745230072,3.64491947,89.389,89.352,3.80773756]
[1772745234175,3.64491947,89.387,89.352,3.80773756]
[1772745240380,3.6031922,89.385,89.352,3.80773756]
[1772745246089,13.6701922,89.384,89.352,3.80773756]
[1772745252292,3.6031922,89.384,89.353,10.07]
[1772745252491,3.6031922,89.384,89.352,3.80773756]
[1772745253391,10.066,89.388,89.352,3.80773756]
[1772745253590,3.6031922,89.394,89.352,3.80773756]
[1772745253992,3.6031922,89.384,89.347,3.64898696]
[1772745254698,3.6031922,89.399,89.347,3.64898696]
[1772745255197,3.6031922,89.409,89.361,3.64898696]
[1772745256398,13.6681922,89.401,89.361,3.64898696]
[1772745256795,3.6031922,89.4,89.361,3.64898696]
[1772745256999,3.6031922,89.397,89.361,3.64898696]
[1772745263408,10.066,89.395,89.361,3.64898696]
[1772745263813,13.6691922,89.395,89.361,3.64898696]
[1772745270321,3.66982168,89.394,89.361,3.64898696]
[1772745271415,3.52589884,89.4,89.361,3.64898696]
[1772745272419,3.66982168,89.428,89.371,3.71747392]
[1772745273015,13.73282168,89.419,89.374,3.71747392]
[1772745273422,3.66982168,89.418,89.374,3.71747392]
[1772745276626,3.66982168,89.416,89.374,3.71747392]
[1772745278327,3.52589884,89.4,89.366,10.069]
[1772745278522,3.66982168,89.399,89.364,3.71747392]
[1772745283026,3.66982168,89.399,89.35,3.52589884]
[1772745283027,3.66982168,89.399,89.366,13.78647392]
[1772745283826,3.66982168,89.399,89.367,3.71747392]
[1772745291040,3.66982168,89.415,89.37,3.52589884]
[1772745291243,3.66982168,89.438,89.391,3.71747392]
[1772745292128,3.66982168,89.429,89.381,3.71747392]
[1772745292531,3.66982168,89.429,89.388,3.71747392]
[1772745292729,3.66982168,89.439,89.388,3.71747392]
[1772745293137,3.66982168,89.439,89.391,3.71747392]
[1772745293638,3.52589884,89.44,89.391,3.71747392]
[1772745293639,3.66982168,89.438,89.391,3.71747392]
[1772745295640,3.66982168,89.436,89.391,3.71747392]
[1772745296843,7.19572052,89.43,89.391,3.71747392]
[1772745301941,3.69857463,89.429,89.391,3.71747392]
[1772745305047,3.52231098,89.41,89.381,3.84994792]
[1772745305647,3.69813312,89.419,89.381,3.84994792]
[1772745306647,3.69816361,89.416,89.381,3.84994792]
[1772745308852,10.062,89.426,89.382,10.067]
[1772745309042,10.062,89.426,89.383,3.84994792]
[1772745310356,3.66663458,89.422,89.38,3.52231098]
[1772745310657,3.66663458,89.409,89.373,3.84994792]
[1772745311051,3.66663458,89.407,89.373,3.84994792]
[1772745312457,20.12,89.448,89.347,20.9019418]
[1772745312458,3.73774816,89.426,89.381,3.84994792]
[1772745312757,3.73774816,89.426,89.391,3.84994792]
[1772745318562,13.77837175,89.437,89.392,3.84994792]
[1772745319265,3.71737175,89.434,89.392,3.84994792]
[1772745319460,3.71737175,89.429,89.392,3.84994792]
[1772745320566,3.72742851,89.427,89.392,3.84994792]
[1772745323166,3.7274742,89.425,89.392,3.84994792]
[1772745324167,3.75806988,89.422,89.392,3.84994792]
[1772745325868,11.2,89.466,89.343,20.143]
[1772745325869,10.061,89.44,89.401,3.84994792]
[1772745326078,3.75806988,89.446,89.401,3.84994792]
[1772745327569,3.75806988,89.446,89.403,3.84994792]
[1772745328964,3.75806988,89.446,89.408,3.6328642]
[1772745333179,3.52231098,89.44,89.408,3.6328642]
[1772745337081,3.75806988,89.446,89.408,3.6328642]
[1772745338281,3.52231098,89.44,89.408,3.6328642]
[1772745338483,3.72897489,89.439,89.396,3.96343219]
[1772745338678,3.72897489,89.439,89.386,13.86943952]
[1772745338984,7.25128587,89.41,89.374,3.96343219]
[1772745339484,10.064,89.408,89.374,3.96343219]
[1772745339680,3.72897489,89.409,89.374,3.96343219]
[1772745339987,3.52231098,89.4,89.364,17.83287171]
[1772745340185,3.52231098,89.4,89.364,3.96343219]
[1772745340680,3.52231098,89.4,89.365,3.96343219]
[1772745341286,10.065,89.402,89.365,3.96343219]
[1772745343688,3.72897489,89.409,89.365,3.96343219]
[1772745344085,3.72897489,89.409,89.366,10.069]
[1772745344283,3.72897489,89.409,89.367,3.96343219]
[1772745345090,3.72897489,89.409,89.37,3.96343219]
[1772745346688,3.72897489,89.409,89.372,3.96343219]
[1772745348087,3.72897489,89.409,89.373,14.03143219]
[1772745349091,3.72897489,89.409,89.373,3.96343219]
[1772745350296,3.52231098,89.43,89.381,3.96343219]
[1772745350500,3.65149711,89.433,89.391,3.96343219]
[1772745351397,13.71249711,89.433,89.393,3.96343219]
[1772745352297,3.65149711,89.433,89.393,3.96343219]
[1772745353297,10.061,89.44,89.401,3.96343219]
[1772745358900,3.72305395,89.439,89.401,3.96343219]
[1772745361399,3.72429512,89.436,89.401,3.96343219]
[1772745361606,3.72429512,89.436,89.39,3.720886]
[1772745362506,3.75583391,89.434,89.39,3.720886]
[1772745363406,10.062,89.432,89.39,3.720886]
[1772745363705,3.75583391,89.431,89.39,3.720886]
[1772745365707,3.52227248,89.43,89.39,3.720886]
[1772745366208,7.27807213,89.43,89.39,3.720886]
[1772745366507,3.75579965,89.429,89.39,3.720886]
[1772745369112,10.061,89.438,89.394,3.720886]
[1772745369309,3.71103586,89.437,89.394,3.720886]
[1772745370408,3.71103586,89.437,89.4,3.720886]
[1772745373011,3.63770023,89.459,89.409,3.720886]
[1772745373312,3.63770023,89.459,89.41,3.52227248]
[1772745373513,3.63770023,89.459,89.411,3.720886]
[1772745374414,3.63770023,89.459,89.417,3.720886]
[1772745377415,10.059,89.458,89.417,3.720886]
[1772745377614,3.7060907,89.457,89.417,3.720886]
[1772745378210,3.7060907,89.457,89.419,10.063]
[1772745378617,3.7060907,89.457,89.42,3.720886]
[1772745380420,3.7060907,89.457,89.422,3.720886]
[1772745381510,3.7060907,89.457,89.423,13.782886]
[1772745381709,3.7060907,89.457,89.423,10.062]
[1772745382115,1.94583533,89.5,89.432,3.720886]
[1772745382320,3.52227248,89.48,89.432,3.720886]
[1772745382719,3.72360685,89.481,89.441,3.720886]
[1772745383015,3.52227248,89.49,89.441,3.720886]
[1772745383016,3.72360685,89.49,89.441,3.720886]
[1772745383216,3.72360685,89.49,89.443,3.720886]
[1772745383519,3.72360685,89.489,89.443,3.720886]
[1772745385520,3.72360685,89.489,89.406,20.9019418]
[1772745385521,1.94527516,89.52,89.411,3.720886]
[1772745385721,3.698686,89.514,89.43,3.52227248]
[1772745385924,3.698686,89.514,89.425,13.82746246]
[1772745386120,3.69634468,89.557,89.48,3.52227248]
[1772745386321,10.41203872,89.564,89.41,20.128]
[1772745386322,3.69634468,89.539,89.49,3.52227248]
[1772745386522,11.40214325,89.597,89.41,20.128]
[1772745386523,3.52227248,89.53,89.479,3.720886]
[1772745386728,3.52227248,89.52,89.479,3.720886]
[1772745387127,3.52227248,89.54,89.481,3.720886]
[1772745388126,3.69936411,89.569,89.521,3.720886]
[1772745388829,3.52227248,89.57,89.521,3.720886]
[1772745389127,3.52227248,89.58,89.521,3.720886]
[1772745389325,7.22744799,89.58,89.531,3.93531258]
[1772745389525,3.52227248,89.57,89.531,3.93531258]
[1772745389723,3.70517551,89.569,89.511,3.69755445]
[1772745390029,3.52227248,89.56,89.511,3.69755445]
[1772745390627,3.52227248,89.53,89.486,3.69755445]
[1772745390825,1.9434772,89.6,89.41,20.128]
[1772745390826,3.52227248,89.52,89.471,3.69755445]
[1772745391021,156.244,89.59,89.471,3.69755445]
[1772745391022,3.52227248,89.5,89.471,3.69755445]
[1772745391225,3.52227248,89.5,89.456,3.69755445]
[1772745399735,7.33526687,89.49,89.443,3.69755445]
[1772745400832,3.52227248,89.5,89.455,3.69755445]
[1772745401435,3.81299439,89.518,89.471,3.69755445]
[1772745401633,3.52227248,89.53,89.48,3.52227248]
[1772745401933,3.52227248,89.53,89.481,3.69755445]
[1772745402534,3.52227248,89.52,89.481,3.69755445]
[1772745402936,3.81299439,89.519,89.467,3.69755445]
[1772745403537,3.52227248,89.52,89.473,3.69755445]
[1772745404440,3.52227248,89.52,89.475,3.69755445]
[1772745405040,20.089,89.585,89.428,20.124]
[1772745405041,3.52227248,89.54,89.49,3.52227248]
[1772745405239,3.52227248,89.54,89.437,13.73000754]
[1772745405240,3.52227248,89.56,89.501,3.69755445]
[1772745405544,3.52227248,89.56,89.51,10.053]
[1772745405941,3.52227248,89.56,89.51,17.27282693]
[1772745406139,3.52227248,89.56,89.515,3.69755445]
[1772745406343,3.52227248,89.57,89.521,3.69755445]
[1772745406938,3.52227248,89.57,89.525,3.69755445]
[1772745407643,3.52227248,89.57,89.529,10.051]
[1772745407943,3.52227248,89.56,89.525,3.69755445]
[1772745408447,3.81299439,89.559,89.51,3.69755445]
[1772745408647,3.81299439,89.559,89.511,3.69755445]
[1772745409141,3.81299439,89.559,89.51,3.52227248]
[1772745409142,3.52227248,89.57,89.521,3.69755445]
[1772745409744,3.81299439,89.573,89.521,3.69755445]
[1772745410242,3.52227248,89.58,89.531,3.69755445]
[1772745411243,1.94346635,89.61,89.52,3.52227248]
[1772745411244,7.33526687,89.57,89.52,3.52227248]
[1772745411439,3.52227248,89.56,89.52,3.69755445]
[1772745411643,3.81299439,89.559,89.51,7.21982693]
[1772745411845,3.81299439,89.559,89.511,3.69755445]
[1772745412349,3.81299439,89.559,89.519,10.052]
[1772745418257,3.81299439,89.559,89.512,3.69755445]
[1772745418458,3.81299439,89.559,89.52,3.52227248]
[1772745419954,10.047,89.558,89.52,3.52227248]
[1772745420151,3.86096637,89.557,89.52,3.52227248]
[1772745420755,3.86096637,89.557,89.512,3.69755445]
[1772745421157,1.94346635,89.61,89.512,3.69755445]
[1772745421158,3.86096637,89.552,89.512,3.69755445]
[1772745421358,3.86096637,89.549,89.5,3.52227248]
[1772745421559,3.86096637,89.539,89.49,3.52227248]
[1772745421758,3.86096637,89.539,89.491,3.66325878]
[1772745421958,3.86096637,89.539,89.495,3.66325878]
[1772745422161,3.82881604,89.552,89.501,3.66325878]
[1772745422861,3.82881604,89.552,89.51,7.18553126]
[1772745423056,3.82881604,89.552,89.511,3.66325878]
[1772745423562,3.52227248,89.55,89.46,3.66325878]
[1772745423758,3.52227248,89.55,89.501,3.66325878]
[1772745424463,7.35630733,89.55,89.501,13.71725878]
[1772745424664,3.52227248,89.54,89.501,13.71725878]
[1772745424965,3.83403485,89.539,89.481,3.66325878]
[1772745425263,3.83403485,89.539,89.499,3.66325878]
[1772745426458,3.83403485,89.539,89.501,10.054]
[1772745427361,3.83403485,89.539,89.455,20.118]
[1772745427362,3.83403485,89.539,89.481,3.66325878]
[1772745428363,10.05,89.53,89.49,7.17688665]
[1772745429267,10.05,89.53,89.491,3.66325878]
[1772745429967,3.51362787,89.55,89.501,3.66325878]
[1772745430365,3.72001561,89.549,89.501,3.66325878]
[1772745431365,10.049,89.548,89.507,10.053]
[1772745432862,13.76301397,89.546,89.501,3.66325878]
[1772745433068,3.71401397,89.545,89.501,3.66325878]
[1772745436176,3.71401397,89.545,89.454,20.59434624]
[1772745436177,3.78619037,89.593,89.526,3.66325878]
[1772745436373,11.2,89.615,89.526,3.66325878]
[1772745436374,3.51362787,89.57,89.526,3.66325878]
[1772745436776,3.51362787,89.57,89.526,13.71425878]
[1772745437376,3.78619037,89.569,89.526,13.71425878]
[1772745438174,3.51362787,89.56,89.526,3.66325878]
[1772745439781,3.51362787,89.55,89.513,3.66325878]
[1772745439979,7.35728919,89.55,89.513,3.66325878]
[1772745440982,10.049,89.547,89.505,10.053]
[1772745441181,3.75908878,89.546,89.505,10.053]
[1772745441586,3.75908878,89.546,89.51,10.053]
[1772745442483,3.75908878,89.546,89.506,3.66325878]
[1772745442484,10.049,89.544,89.506,3.66325878]
[1772745442784,3.75908878,89.546,89.506,3.66325878]
[1772745443082,10.049,89.543,89.506,3.66325878]
[1772745444084,13.7687118,89.543,89.506,3.66325878]
[1772745445385,3.7197118,89.554,89.508,3.66325878]
[1772745446279,3.73541002,89.591,89.521,3.66325878]
[1772745446480,124.0,89.64,89.496,20.109]
[1772745446481,3.73541002,89.579,89.531,3.66325878]
[1772745447184,3.51362787,89.57,89.531,3.66325878]
[1772745447781,3.73541002,89.579,89.531,3.66325878]
[1772745448980,3.73541002,89.579,89.536,3.62936832]
[1772745449488,3.73541002,89.579,89.541,3.62936832]
[1772745451687,3.51362787,89.58,89.543,3.87106892]
[1772745451886,3.51362787,89.59,89.543,3.87106892]
[1772745452289,3.64113353,89.59,89.546,3.87106892]
[1772745453390,3.64113353,89.59,89.55,3.87106892]
[1772745453989,3.51362787,89.6,89.552,3.87106892]
[1772745454393,7.13911949,89.6,89.552,3.87106892]
[1772745455189,7.13911949,89.6,89.516,20.59434624]
[1772745455190,3.51362787,89.61,89.561,3.87106892]
[1772745455384,3.62549162,89.609,89.561,3.87106892]
[1772745455586,3.51362787,89.6,89.561,3.87106892]
[1772745456393,3.51362787,89.6,89.493,27.56322938]
[1772745456394,11.2,89.665,89.591,3.87106892]
[1772745456589,50.14701573,89.722,89.564,156.287]
[1772745456590,10.40869177,89.68,89.64,3.51362787]
[1772745456893,3.62351011,89.709,89.641,76.0]
[1772745457092,7.13713798,89.7,89.65,3.51362787]
[1772745457390,7.13713798,89.69,89.642,3.87106892]
[1772745457590,1.94071344,89.73,89.621,3.87106892]
[1772745457591,3.62351011,89.679,89.621,3.87106892]
[1772745457792,3.51362787,89.68,89.631,3.87106892]
[1772745458195,155.956,89.756,89.566,156.285]
[1772745458196,3.5390779,89.709,89.651,3.87106892]
[1772745458503,1.94080543,89.74,89.651,3.87106892]
[1772745458690,1.94080543,89.74,89.676,3.87106892]
[1772745458895,3.5390779,89.757,89.676,3.87106892]
[1772745459104,3.5390779,89.757,89.689,3.87106892]
[1772745459900,3.5390779,89.749,89.672,3.87106892]
[1772745460698,3.66684375,89.729,89.651,3.87106892]
[1772745461402,9.37795018,89.73,89.651,3.87106892]
[1772745461403,3.66684375,89.722,89.651,3.87106892]
[1772745462304,3.6806408,89.709,89.631,3.87106892]
[1772745462993,3.6806408,89.709,89.632,3.87106892]
[1772745463504,10.029,89.722,89.632,3.87106892]
[1772745463802,3.6806408,89.721,89.632,3.87106892]
[1772745464404,3.6806408,89.721,89.63,9.37795018]
[1772745464405,3.6806408,89.721,89.636,3.87106892]
[1772745464700,3.6806408,89.721,89.651,3.87106892]
[1772745468603,3.20719488,89.717,89.651,3.87106892]
[1772745471308,3.20719488,89.717,89.641,10.038]
[1772745471309,3.20719488,89.717,89.653,3.87106892]
[1772745472414,3.20719488,89.717,89.656,3.87106892]
[1772745472802,3.17512967,89.716,89.656,3.87106892]
[1772745473204,3.17512967,89.716,89.669,3.87106892]
[1772745474505,3.2096761,89.73,89.669,3.87106892]
[1772745474813,165.22195018,89.82,89.673,3.87106892]
[1772745474814,3.2096761,89.744,89.673,3.87106892]
[1772745475812,3.2096761,89.744,89.699,3.87106892]
[1772745477505,10.027,89.741,89.699,3.87106892]
[1772745477711,3.20404642,89.74,89.682,3.87106892]
[1772745477910,3.20404642,89.728,89.667,3.87106892]
[1772745478817,10.03,89.713,89.667,3.87106892]
[1772745480012,3.1645397,89.706,89.65,3.97990275]
[1772745481108,10.032,89.696,89.65,3.97990275]
[1772745481305,3.1645397,89.706,89.65,3.97990275]
[1772745481710,10.033,89.689,89.65,3.97990275]
[1772745482118,3.17388622,89.692,89.631,3.97990275]
[1772745482311,10.033,89.682,89.631,3.97990275]
[1772745482508,10.033,89.682,89.636,3.97990275]
[1772745482712,10.031,89.705,89.636,3.97990275]
[1772745484212,10.032,89.697,89.647,3.97990275]
[1772745484415,3.17388622,89.707,89.647,3.97990275]
[1772745485516,10.033,89.69,89.647,3.97990275]
[1772745486018,10.034,89.682,89.647,3.97990275]
[1772745486213,3.21018044,89.693,89.647,3.97990275]
[1772745488713,10.033,89.685,89.647,3.97990275]
[1772745492120,10.033,89.685,89.633,14.01890275]
[1772745492319,3.21392221,89.678,89.633,3.97990275]
[1772745492817,3.21392221,89.678,89.625,10.04]
[1772745493423,10.035,89.667,89.625,10.04]
[1772745494217,10.035,89.667,89.619,3.97990275]
[1772745495815,3.21432947,89.66,89.616,10.041]
[1772745496225,3.21432947,89.66,89.606,3.97990275]
[1772745496226,10.036,89.658,89.609,10.042]
[1772745496525,13.26783731,89.658,89.609,14.02190275]
[1772745496823,3.23183731,89.658,89.61,3.97990275]
[1772745498324,10.036,89.657,89.61,3.97990275]
[1772745499425,10.037,89.648,89.61,3.97990275]
[1772745500426,3.23183731,89.658,89.612,3.97990275]
[1772745501223,13.26783731,89.658,89.616,10.041]
[1772745502828,10.037,89.652,89.612,3.97990275]
[1772745503427,3.23183731,89.658,89.612,3.97990275]
[1772745504221,3.33245722,89.673,89.631,3.97990275]
[1772745504929,10.035,89.669,89.631,3.97990275]
[1772745505131,13.36745722,89.669,89.631,3.97990275]
[1772745507028,3.33245722,89.669,89.631,3.97990275]
[1772745507225,3.34395636,89.737,89.631,3.97990275]
[1772745507430,3.34395636,89.689,89.631,3.97990275]
[1772745507630,10.034,89.679,89.632,3.97990275]
[1772745508431,6.85387479,89.7,89.641,3.7059509]
[1772745508631,3.34925288,89.699,89.641,3.7059509]
[1772745509233,10.033,89.689,89.647,3.7059509]
[1772745513942,10.033,89.689,89.65,7.12238728]
[1772745514132,10.033,89.689,89.651,3.61776537]
[1772745514332,13.38125288,89.699,89.651,3.61776537]
[1772745515834,3.41049804,89.698,89.651,3.61776537]
[1772745516234,3.41049804,89.698,89.653,10.037]
[1772745517935,3.40769516,89.696,89.653,3.61776537]
[1772745518540,3.50462191,89.69,89.653,3.61776537]
[1772745518835,3.40769516,89.696,89.653,3.61776537]
[1772745519442,3.40769516,89.696,89.653,13.65476537]
[1772745520032,3.40769516,89.696,89.623,13.52332402]
[1772745520033,3.50462191,89.72,89.669,3.61776537]
[1772745520338,3.50462191,89.72,89.671,3.61776537]
[1772745520840,6.95658376,89.72,89.671,3.61776537]
[1772745522438,10.029,89.719,89.671,3.61776537]
[1772745522639,13.52591733,89.719,89.671,3.61776537]
[1772745524047,10.03,89.715,89.671,3.61776537]
[1772745524744,3.51395749,89.714,89.66,3.50462191]
[1772745524946,3.51395749,89.7,89.658,3.61776537]
[1772745525638,3.51395749,89.699,89.658,3.61776537]
[1772745526744,10.032,89.693,89.658,3.61776537]
[1772745527046,3.5106163,89.692,89.644,3.61776537]
[1772745528243,3.5106163,89.692,89.651,10.037]
[1772745532451,3.5106163,89.692,89.657,10.036]
[1772745532652,3.50462191,89.68,89.625,3.61776537]
[1772745532950,3.52080108,89.679,89.628,3.61776537]
[1772745533147,3.50462191,89.69,89.641,3.61776537]
[1772745533548,7.02542299,89.69,89.641,3.61776537]
[1772745533750,3.52080108,89.689,89.641,3.61776537]
[1772745534248,3.61685121,89.688,89.641,3.61776537]
[1772745534445,3.50462191,89.68,89.641,3.61776537]
[1772745535652,13.64985121,89.686,89.641,3.61776537]
[1772745535852,3.61685121,89.685,89.641,3.61776537]
[1772745536052,3.61685121,89.685,89.641,13.65576537]
[1772745536549,3.50462191,89.68,89.641,13.65576537]
[1772745536948,3.50462191,89.68,89.641,3.61776537]
[1772745537549,3.6383521,89.679,89.641,3.61776537]
[1772745537855,3.6383521,89.669,89.62,3.50462191]
[1772745538253,3.6383521,89.669,89.615,3.61776537]
[1772745539156,3.63094071,89.659,89.615,3.61776537]
[1772745540246,13.66694071,89.659,89.615,3.61776537]
[1772745541351,10.035,89.667,89.615,3.61776537]
[1772745541548,90.5957709,89.891,89.631,3.81950322]
[1772745541549,3.62823278,89.686,89.631,3.81950322]
[1772745542446,10.034,89.679,89.639,10.038]
[1772745542645,3.62366129,89.678,89.631,3.81950322]
[1772745542851,3.62366129,89.669,89.62,3.50462191]
[1772745543050,3.62366129,89.669,89.621,3.81950322]
[1772745543949,3.62366129,89.669,89.62,3.50462191]
[1772745543950,3.62366129,89.682,89.631,3.81950322]
[1772745544254,3.50462191,89.69,89.631,3.81950322]
[1772745544255,3.50462191,89.69,89.64,3.50462191]
[1772745544446,3.47975523,89.695,89.653,10.037]
[1772745544857,3.47975523,89.695,89.656,10.036]
[1772745545052,3.47975523,89.695,89.656,13.85550322]
[1772745545252,3.47975523,89.695,89.657,3.81950322]
[1772745545552,10.031,89.705,89.657,3.81950322]
[1772745546455,10.031,89.705,89.66,10.036]
[1772745546754,10.031,89.705,89.657,3.81950322]
[1772745547654,10.032,89.699,89.657,3.81950322]
[1772745551758,10.031,89.707,89.661,3.81950322]
[1772745551954,3.50133297,89.71,89.661,3.81950322]
[1772745552155,3.50532312,89.721,89.68,3.50133297]
[1772745553556,3.50603161,89.739,89.685,3.81950322]
[1772745553759,3.50603161,89.739,89.69,7.32083619]
[1772745554162,3.50603161,89.739,89.69,3.81950322]
[1772745554458,3.54107886,89.738,89.691,10.032]
[1772745555362,10.027,89.737,89.691,10.032]
[1772745555559,10.027,89.737,89.693,10.032]
[1772745555961,3.54107886,89.769,89.694,3.81950322]
[1772745556260,20.044,89.785,89.698,10.032]
[1772745556261,3.50133297,89.74,89.698,10.032]
[1772745556462,3.50196683,89.739,89.673,17.34282724]
[1772745556663,3.50133297,89.72,89.682,10.033]
[1772745556862,3.50196683,89.719,89.682,10.033]
[1772745558660,3.50196683,89.719,89.674,3.81950322]
[1772745558661,3.35395982,89.729,89.675,3.81950322]
[1772745559258,3.50133297,89.72,89.676,13.85350322]
[1772745560064,3.35395982,89.727,89.676,13.85350322]
[1772745560262,3.35395982,89.727,89.677,3.81950322]
[1772745560467,3.36695083,89.724,89.677,3.81950322]
[1772745560765,3.36695083,89.724,89.68,3.50133297]
[1772745562168,3.35766456,89.719,89.67,3.50133297]
[1772745562764,3.35766456,89.719,89.671,3.81950322]
[1772745563362,10.029,89.718,89.671,13.85450322]
[1772745564870,10.029,89.718,89.675,10.034]
[1772745567572,3.33931394,89.717,89.675,10.034]
[1772745568265,3.33931394,89.717,89.655,13.52332402]
[1772745568479,3.33931394,89.717,89.62,27.08780026]
[1772745568480,3.32060757,89.745,89.661,3.7259898]
[1772745568775,3.50133297,89.71,89.661,3.7259898]
[1772745568977,10.031,89.708,89.672,3.7259898]
[1772745570275,3.32060757,89.714,89.674,3.76032413]
[1772745570772,3.3263019,89.724,89.681,3.76032413]
[1772745571573,10.029,89.723,89.682,10.033]
[1772745571772,10.029,89.723,89.681,3.76032413]
[1772745571964,13.3553019,89.723,89.681,3.76032413]
[1772745572878,10.03,89.716,89.681,3.76032413]
[1772745573272,3.3263019,89.723,89.681,3.76032413]
[1772745574470,13.3553019,89.723,89.681,3.76032413]
[1772745575976,3.50133297,89.71,89.669,3.76032413]
[1772745576187,3.22934689,89.709,89.669,3.76032413]
[1772745576775,3.22934689,89.709,89.67,3.50133297]
[1772745577079,3.22934689,89.721,89.671,3.76032413]
[1772745577379,3.22934689,89.721,89.681,3.76032413]
[1772745582582,3.25370909,89.748,89.691,3.76032413]
[1772745583275,13.27970909,89.748,89.697,3.76032413]
[1772745583976,13.27970909,89.748,89.702,3.76032413]
[1772745584188,3.25370909,89.748,89.702,3.76032413]
[1772745584685,3.25370909,89.748,89.705,10.031]
[1772745586091,13.28250793,89.747,89.702,3.76032413]
[1772745586280,3.25650793,89.746,89.702,3.76032413]
[1772745586686,3.25650793,89.746,89.705,3.76032413]
[1772745587388,3.25650793,89.746,89.707,3.76032413]
[1772745591786,3.25650793,89.746,89.709,3.76032413]
[1772745592189,3.27514242,89.759,89.72,3.76032413]
[1772745593388,3.27514242,89.759,89.711,10.03]
[1772745593589,3.50133297,89.75,89.712,3.76032413]
[1772745594891,10.026,89.748,89.712,3.76032413]
[1772745595991,13.28093232,89.746,89.712,3.76032413]
[1772745596189,3.26383521,89.745,89.699,3.76032413]
[1772745596389,3.26383521,89.739,89.699,3.76032413]
[1772745597696,3.26383521,89.739,89.701,3.76032413]
[1772745598492,3.26383521,89.739,89.703,13.79132413]
[1772745598687,13.22117156,89.751,89.704,3.76032413]
[1772745598896,3.19517156,89.75,89.704,3.76032413]
[1772745600200,3.19517156,89.75,89.707,3.96879037]
[1772745601400,3.19517156,89.75,89.71,3.96879037]
[1772745601602,10.024,89.763,89.71,3.96879037]
[1772745601898,3.19785063,89.762,89.71,3.96879037]
[1772745602497,1.93953986,89.79,89.712,13.99879037]
[1772745602498,3.1757011,89.754,89.712,13.99879037]
[1772745602700,3.1757011,89.754,89.697,3.96879037]
[1772745603494,10.027,89.74,89.699,3.96879037]
[1772745603698,3.1757011,89.754,89.699,3.96879037]
[1772745604810,3.18368351,89.739,89.689,10.033]
[1772745605202,3.18368351,89.739,89.69,3.96879037]
[1772745606010,3.18368351,89.739,89.683,13.52332402]
[1772745606011,3.18368351,89.739,89.693,3.96879037]
[1772745606212,3.18368351,89.776,89.693,3.96879037]
[1772745607013,10.026,89.75,89.707,3.96879037]
[1772745609411,3.23193209,89.754,89.712,3.96879037]
[1772745610115,3.19960016,89.752,89.712,3.96879037]
[1772745611515,10.026,89.75,89.712,3.96879037]
[1772745611718,3.19960016,89.752,89.712,3.96879037]
[1772745614117,3.23937382,89.776,89.712,3.96879037]
[1772745615118,3.23937382,89.761,89.712,3.96879037]
[1772745616420,3.05156638,89.758,89.712,3.96879037]
[1772745617818,3.05156638,89.758,89.714,3.96879037]
[1772745618721,10.025,89.757,89.714,3.96879037]
[1772745619222,10.026,89.747,89.714,3.96879037]
[1772745619523,3.04996533,89.756,89.714,3.96879037]
[1772745621423,10.025,89.755,89.714,3.96879037]
[1772745621721,13.10002328,89.755,89.714,3.96879037]
[1772745622123,3.07502328,89.755,89.714,3.96879037]
[1772745622620,3.08444937,89.772,89.714,3.96879037]
[1772745622817,3.08444937,89.772,89.73,3.96879037]
[1772745623622,3.08444937,89.772,89.732,3.96879037]
[1772745624723,3.08078027,89.77,89.722,10.029]
[1772745625127,3.08078027,89.77,89.723,3.96879037]
[1772745626429,10.024,89.768,89.723,3.96879037]
[1772745627222,3.07968941,89.765,89.723,3.96879037]